bitfinex/quotes_ETHUSD_20250414
["timestamp","ask_amount","ask_price","bid_price","bid_amount"]
[1744671549829,0.19594651,1620.3,1620.2,5.474]
[1744671550026,9.17131,1620.4,1620.2,6.2435]
[1744671550198,0.1985841,1620.3,1620.2,6.2435]
[1744671550401,9.17131,1620.4,1620.2,6.2435]
[1744671550614,0.1985841,1620.3,1620.2,6.2435]
[1744671550809,15.34279,1620.4,1620.2,6.2435]
[1744671551021,7.705969,1620.3,1620.2,5.474]
[1744671551222,6.3702741,1620.3,1620.2,5.474]
[1744671558367,0.1985841,1620.3,1620.2,5.474]
[1744671558575,6.3702741,1620.3,1620.2,5.474]
[1744671558733,6.17169,1620.3,1620.2,5.474]
[1744671558935,6.36982285,1620.3,1620.2,5.474]
[1744671560039,7.92393614,1620.3,1620.2,5.474]
[1744671561871,0.19813285,1620.3,1620.2,5.474]
[1744671562074,6.17169,1620.3,1620.2,5.474]
[1744671562279,6.37008661,1620.3,1620.2,5.474]
[1744671563670,0.19839661,1620.3,1620.2,5.474]
[1744671563834,9.17131,1620.4,1620.2,5.474]
[1744671564036,0.19839661,1620.3,1620.2,5.474]
[1744671564269,10.75154342,1620.4,1620.2,5.474]
[1744671564471,0.19839661,1620.3,1620.2,5.474]
[1744671564765,10.75154342,1620.4,1620.2,5.474]
[1744671564975,0.19839661,1620.3,1620.2,5.474]
[1744671565340,15.34281,1620.4,1620.2,5.474]
[1744671565535,0.19839661,1620.3,1620.2,5.474]
[1744671565974,9.17131,1620.4,1620.2,5.474]
[1744671566159,0.19839661,1620.3,1620.2,5.474]
[1744671566974,9.17131,1620.4,1620.2,5.474]
[1744671567266,0.19839661,1620.3,1620.2,5.474]
[1744671567456,9.17131,1620.4,1620.2,5.474]
[1744671567656,0.19839661,1620.3,1620.2,5.474]
[1744671567973,9.17131,1620.4,1620.2,5.474]
[1744671568166,0.19839661,1620.3,1620.2,5.474]
[1744671568477,9.17131,1620.4,1620.2,5.474]
[1744671568637,0.19839661,1620.3,1620.2,5.474]
[1744671568837,9.17131,1620.4,1620.2,5.474]
[1744671569039,0.19839661,1620.3,1620.2,5.474]
[1744671569239,9.17131,1620.4,1620.2,5.474]
[1744671569463,0.19839661,1620.3,1620.2,5.474]
[1744671569665,9.17131,1620.4,1620.2,5.474]
[1744671569865,0.19839661,1620.3,1620.2,5.474]
[1744671570068,9.17131,1620.4,1620.2,5.474]
[1744671570255,0.19839661,1620.3,1620.2,5.474]
[1744671570458,9.17131,1620.4,1620.2,5.474]
[1744671570669,0.19839661,1620.3,1620.2,5.474]
[1744671570868,9.17131,1620.4,1620.2,5.474]
[1744671571071,0.19839661,1620.3,1620.2,5.474]
[1744671571271,9.17131,1620.4,1620.2,5.474]
[1744671571450,0.19839661,1620.3,1620.2,5.474]
[1744671571651,9.17131,1620.4,1620.2,5.474]
[1744671571969,0.19839661,1620.3,1620.2,5.474]
[1744671572171,0.19839661,1620.3,1620.2,14.24445427]
[1744671572372,6.14,1620.8,1620.5,6.17089]
[1744671572574,7.34287246,1620.8,1620.5,6.17089]
[1744671572869,6.35229119,1620.7,1620.4,6.17122]
[1744671573053,12.52276119,1620.7,1620.4,6.17122]
[1744671573279,6.17057,1620.6,1620.3,13.09812]
[1744671573441,0.18195551,1620.5,1620.3,15.1335187]
[1744671574175,0.18195551,1620.5,1620.3,8.9617687]
[1744671574372,6.35301551,1620.5,1620.3,0.7548]
[1744671574886,12.52425551,1620.5,1620.3,0.7548]
[1744671575949,6.17131,1620.4,1620.3,0.7548]
[1744671576145,6.17131,1620.4,1620.2,5.474]
[1744671576375,6.35325266,1620.4,1620.2,5.474]
[1744671576757,6.17169,1620.3,1620.2,5.474]
[1744671577081,6.35361981,1620.3,1620.2,5.474]
[1744671577377,7.60611279,1620.3,1620.2,5.474]
[1744671578497,0.18192981,1620.3,1620.2,5.474]
[1744671578649,12.34279,1620.4,1620.2,5.474]
[1744671578650,6.17131,1620.4,1620.2,5.474]
[1744671578847,0.18192981,1620.3,1620.2,5.474]
[1744671579149,6.17131,1620.4,1620.2,5.474]
[1744671579349,0.18192981,1620.3,1620.2,5.474]
[1744671579765,12.34284,1620.4,1620.2,5.474]
[1744671579968,0.18192981,1620.3,1620.2,5.474]
[1744671580319,12.34284,1620.4,1620.2,5.474]
[1744671580468,0.18141315,1620.3,1620.2,5.474]
[1744671580667,12.34284,1620.4,1620.2,5.474]
[1744671580887,0.18141315,1620.3,1620.2,5.474]
[1744671581090,9.17094,1620.5,1620.2,11.64589]
[1744671581367,0.18142599,1620.4,1620.2,11.64589]
[1744671581584,0.18142599,1620.4,1620.2,12.892409]
[1744671581995,6.35282599,1620.4,1620.2,6.720519]
[1744671582170,12.52435599,1620.4,1620.2,5.474]
[1744671582373,6.35282599,1620.4,1620.2,5.474]
[1744671582687,6.17169,1620.3,1620.2,5.474]
[1744671582988,6.35369648,1620.3,1620.2,5.474]
[1744671587623,0.18200648,1620.3,1620.2,5.474]
[1744671588322,12.3429,1620.4,1620.2,5.474]
[1744671588514,0.18200648,1620.3,1620.2,5.474]
[1744671588706,12.3429,1620.4,1620.2,5.474]
[1744671588901,0.18200648,1620.3,1620.2,5.474]
[1744671589102,12.3429,1620.4,1620.2,5.474]
[1744671589398,6.35369648,1620.3,1620.2,5.474]
[1744671593329,0.18200648,1620.3,1620.2,5.474]
[1744671593515,6.1714,1620.4,1620.2,5.474]
[1744671593723,0.18200648,1620.3,1620.2,5.474]
[1744671593922,6.17132,1620.4,1620.2,5.474]
[1744671594086,0.18200648,1620.3,1620.1,18.627]
[1744671594287,6.17132,1620.4,1620.1,20.4897]
[1744671594506,0.18200648,1620.3,1620.1,20.4897]
[1744671594709,9.17094,1620.5,1620.4,6.17131]
[1744671594710,3.0,1620.5,1620.4,6.17131]
[1744671594913,3.18203217,1620.5,1620.4,0.8052]
[1744671600518,3.18203217,1620.5,1620.2,6.17196]
[1744671600519,6.17134,1620.4,1620.2,0.812]
[1744671600689,15.52414217,1620.5,1620.2,7.79782]
[1744671600889,9.35303217,1620.5,1620.2,7.79773]
[1744671601292,9.35303217,1620.5,1620.2,1.62577]
[1744671601523,6.17132,1620.4,1620.2,1.62577]
[1744671602518,9.35303217,1620.5,1620.2,7.79784]
[1744671602719,0.18203217,1620.5,1620.4,6.93611]
[1744671602923,0.18203217,1620.5,1620.4,6.99781464]
[1744671603618,0.18203217,1620.5,1620.4,8.10856488]
[1744671604626,0.18203217,1620.5,1620.4,12.10856488]
[1744671604831,0.18203217,1620.5,1620.4,14.63169977]
[1744671605333,0.18203217,1620.5,1620.4,13.45924489]
[1744671606606,0.18203217,1620.5,1620.4,2.52313489]
[1744671606810,0.18203217,1620.5,1620.3,6.23326785]
[1744671607015,0.18203217,1620.5,1620.4,6.99391]
[1744671608628,0.18203217,1620.5,1620.4,0.8226]
[1744671609131,0.18203217,1620.5,1620.4,0.88430561]
[1744671609497,0.18203217,1620.5,1620.4,6.99391]
[1744671609711,0.18203217,1620.5,1620.4,8.310451]
[1744671610725,6.35318217,1620.5,1620.2,7.75696]
[1744671610915,6.35318217,1620.5,1620.2,13.92891]
[1744671611410,0.18203217,1620.5,1620.1,5.463]
[1744671611613,6.17207,1620.2,1620.1,5.463]
[1744671612237,12.34358,1620.3,1620.1,5.463]
[1744671612449,6.17141,1620.4,1620.1,11.69716353]
[1744671612628,15.52421217,1620.5,1620.1,12.52317353]
[1744671612809,6.17132,1620.4,1620.1,18.63378]
[1744671613014,6.17132,1620.4,1620.1,20.497158]
[1744671613226,9.35304217,1620.5,1620.2,6.17205]
[1744671613429,0.18203217,1620.5,1620.3,6.99569]
[1744671613925,0.18203217,1620.5,1620.3,13.16724]
[1744671614129,0.18203217,1620.5,1620.3,6.99555]
[1744671614313,0.18203217,1620.5,1620.3,8.312301]
[1744671615146,6.17131,1620.4,1620.1,14.293888]
[1744671615324,6.17131,1620.4,1620.1,14.293828]
[1744671615933,6.17131,1620.4,1620.2,4.0]
[1744671616337,0.18203217,1620.5,1620.2,10.23374441]
[1744671616531,0.18203217,1620.5,1620.3,6.17167]
[1744671616731,0.18203217,1620.5,1620.2,16.34406]
[1744671616931,6.35298217,1620.5,1620.3,1.02337444]
[1744671617138,12.52405217,1620.5,1620.2,6.17203]
[1744671618953,6.35298217,1620.5,1620.2,12.34392]
[1744671619250,6.35298217,1620.5,1620.2,12.34391]
[1744671620741,12.52411217,1620.5,1620.2,6.17195]
[1744671621359,0.18203217,1620.5,1620.4,0.7572]
[1744671622766,0.18203217,1620.5,1620.4,6.92851]
[1744671623058,0.18203217,1620.5,1620.4,0.7572]
[1744671624276,0.18203217,1620.5,1620.3,11.62838]
[1744671624454,6.35307217,1620.5,1620.3,6.2828]
[1744671625669,0.18203217,1620.5,1620.3,14.317035]
[1744671626055,0.18203217,1620.5,1620.3,20.488615]
[1744671626771,0.18203217,1620.5,1620.3,14.317035]
[1744671626972,0.18203217,1620.5,1620.3,8.145475]
[1744671627143,6.35309217,1620.5,1620.3,5.457]
[1744671627341,6.17131,1620.4,1620.3,5.457]
[1744671629869,6.35309217,1620.5,1620.3,5.457]
[1744671630266,12.52421217,1620.5,1620.3,5.457]
[1744671630577,6.17131,1620.4,1620.3,5.457]
[1744671631343,8.04086222,1620.4,1620.3,5.457]
[1744671631847,6.17228,1620.2,1620.0,5.458]
[1744671632369,12.34469,1620.2,1620.0,5.458]
[1744671632777,6.17245,1620.1,1620.0,5.458]
[1744671633846,6.17245,1620.1,1619.6,6.17429]
[1744671633847,6.17408,1619.7,1619.6,5.458]
[1744671634165,6.17475,1619.5,1619.3,5.458]
[1744671635057,6.17475,1619.5,1619.4,4.0]
[1744671635576,6.17475,1619.5,1619.3,5.458]
[1744671636393,6.17512,1619.4,1619.3,5.458]
[1744671643584,6.17475,1619.5,1619.3,5.458]
[1744671643749,3.0,1619.5,1619.3,11.63331]
[1744671644157,9.17481,1619.5,1619.3,5.458]
[1744671644780,15.3497,1619.5,1619.3,5.458]
[1744671645088,9.17481,1619.5,1619.3,5.458]
[1744671645459,6.17512,1619.4,1619.3,5.458]
[1744671651230,6.17588,1619.2,1619.1,0.05]
[1744671651380,6.17569,1619.3,1619.1,0.05]
[1744671651704,12.35151,1619.3,1619.1,0.05]
[1744671652113,6.17588,1619.2,1619.1,0.05]
[1744671652501,3.0,1619.3,1619.1,0.8245]
[1744671652674,9.17555,1619.3,1619.1,0.8245]
[1744671653520,15.35122,1619.3,1619.1,0.8245]
[1744671656079,6.17588,1619.2,1619.1,0.8245]
[1744671656424,6.17588,1619.2,1619.1,0.05]
[1744671657424,7.711023,1619.2,1619.1,0.05]
[1744671658527,9.17563,1619.3,1619.1,0.05]
[1744671658685,15.35143,1619.3,1619.1,0.05]
[1744671659223,6.17588,1619.2,1619.1,0.05]
[1744671659894,12.03264354,1619.2,1619.1,0.05]
[1744671660097,18.17264354,1619.2,1619.1,0.05]
[1744671660297,22.13903989,1619.2,1619.1,0.05]
[1744671662816,6.17779,1618.7,1618.6,5.5793848]
[1744671663126,6.17779,1618.7,1618.6,0.1223848]
[1744671663341,6.1776,1618.8,1618.6,0.1223848]
[1744671663546,7.40936,1618.8,1618.6,0.1223848]
[1744671663747,12.31709,1618.9,1618.6,7.1257548]
[1744671663918,6.17779,1618.7,1618.6,0.9476848]
[1744671665118,6.17779,1618.7,1618.6,0.1223848]
[1744671667013,6.14,1618.9,1618.6,0.1223848]
[1744671667225,6.14,1618.9,1618.6,7.0610548]
[1744671667226,12.35437,1618.9,1618.6,7.0610548]
[1744671667454,9.17668,1619.0,1618.6,0.8830848]
[1744671667639,10.42695087,1619.0,1618.6,7.0612548]
[1744671667843,6.17708,1618.9,1618.6,7.0611248]
[1744671668044,6.30535659,1618.9,1618.6,7.0611248]
[1744671668846,12.48269659,1618.9,1618.6,7.0611248]
[1744671669227,12.48269659,1618.9,1618.6,0.8830848]
[1744671669431,6.17741,1618.8,1618.6,0.8830848]
[1744671669632,6.30613688,1618.8,1618.6,0.8830848]
[1744671671056,0.12872688,1618.8,1618.7,6.17779]
[1744671671223,3.0,1619.1,1618.8,6.17708]
[1744671671556,9.17647,1619.1,1618.8,6.17708]
[1744671671755,9.17647,1619.1,1618.8,12.35433]
[1744671672051,9.17647,1619.1,1618.7,0.8074]
[1744671672052,6.17741,1618.8,1618.6,0.1223848]
[1744671672230,12.35502,1618.8,1618.6,0.1223848]
[1744671673361,6.17779,1618.7,1618.6,0.1223848]
[1744671674956,6.306504,1618.7,1618.6,0.1223848]
[1744671675960,9.306504,1618.7,1618.6,0.1223848]
[1744671677248,18.30326754,1618.7,1618.6,0.1223848]
[1744671678660,18.30326754,1618.7,1618.6,0.1152193]
[1744671678839,21.53900931,1618.7,1618.6,0.1152193]
[1744671681338,22.08900931,1618.7,1618.6,0.1152193]
[1744671685586,18.68224577,1618.7,1618.6,0.1152193]
[1744671685743,15.446504,1618.7,1618.6,0.1152193]
[1744671687686,9.268714,1618.7,1618.6,0.1152193]
[1744671687882,9.268714,1618.7,1618.6,0.9328193]
[1744671688593,15.446504,1618.7,1618.6,0.9328193]
[1744671688896,9.268714,1618.7,1618.6,0.9328193]
[1744671689597,15.446504,1618.7,1618.6,0.9328193]
[1744671689896,9.268714,1618.7,1618.6,0.9328193]
[1744671690052,0.128714,1618.7,1618.6,10.7406709]
[1744671690257,12.31599,1619.2,1618.8,6.17732]
[1744671690461,6.17637,1619.1,1618.9,0.797]
[1744671691195,3.0,1619.1,1618.9,6.974]
[1744671691397,12.3157,1619.3,1619.0,0.75]
[1744671691566,3.0,1619.2,1619.0,0.75]
[1744671691764,18.4915,1619.3,1619.0,0.75]
[1744671691969,6.1759,1619.2,1619.0,0.75]
[1744671692776,12.35201,1619.2,1619.0,0.75]
[1744671693555,6.1759,1619.2,1619.0,0.75]
[1744671694311,12.35194,1619.2,1619.0,0.75]
[1744671694501,6.1759,1619.2,1619.0,0.75]
[1744671694711,12.35197,1619.2,1619.0,0.75]
[1744671695301,6.1759,1619.2,1619.0,0.75]
[1744671695715,12.35199,1619.2,1619.0,0.75]
[1744671695919,6.1759,1619.2,1619.0,0.75]
[1744671696118,6.14,1619.3,1619.0,2.060381]
[1744671696275,6.14,1619.3,1619.0,6.98822154]
[1744671696622,9.17523,1619.4,1619.1,6.17626]
[1744671696786,6.14,1619.6,1619.4,12.34975]
[1744671696991,6.17449,1619.6,1619.3,13.10291]
[1744671697316,6.17449,1619.6,1619.3,6.92753]
[1744671697531,6.17414,1619.7,1619.3,6.17539]
[1744671697684,6.17414,1619.7,1619.4,6.94661]
[1744671698019,13.55158035,1619.7,1619.4,0.7716]
[1744671698571,6.17441,1619.6,1619.4,0.7716]
[1744671698778,6.17535,1619.4,1619.2,0.7561]
[1744671699719,6.1755,1619.3,1619.2,0.7561]
[1744671700247,12.35123,1619.3,1619.1,6.2465]
[1744671700407,6.1755,1619.3,1619.1,6.2465]
[1744671700707,6.17528,1619.4,1619.1,12.42267]
[1744671701106,6.17528,1619.4,1619.1,18.59884]
[1744671701305,6.17528,1619.4,1619.1,18.59882]
[1744671701505,6.17528,1619.4,1619.1,12.42265]
[1744671702212,12.35074,1619.4,1619.1,12.42265]
[1744671702733,21.48974,1619.5,1619.1,18.59878]
[1744671702934,6.17525,1619.4,1619.1,6.2465]
[1744671703117,6.17561,1619.3,1619.1,6.2465]
[1744671704811,0.12522664,1619.2,1619.1,6.2465]
[1744671705011,6.30110664,1619.2,1619.1,5.454]
[1744671705337,6.17635,1619.1,1618.9,0.7603]
[1744671705537,9.17665,1619.0,1618.8,5.453]
[1744671705703,6.17703,1618.9,1618.8,5.453]
[1744671706109,6.29990128,1618.9,1618.8,5.453]
[1744671706709,0.12287128,1618.9,1618.8,5.453]
[1744671708226,0.12287128,1618.9,1618.8,12.40981]
[1744671708559,0.12287128,1618.9,1618.8,14.268551]
[1744671709444,6.17627,1619.1,1618.8,20.445961]
[1744671709613,12.35279,1619.1,1618.8,14.268551]
[1744671709815,0.12202339,1619.0,1618.8,14.268551]
[1744671710224,0.12202339,1619.0,1618.9,6.17703]
[1744671710426,0.12202339,1619.0,1618.9,8.2215771]
[1744671710637,12.31604,1619.2,1618.9,8.2215771]
[1744671710638,12.31604,1619.2,1618.9,2.0445471]
[1744671710833,0.12202586,1619.0,1618.8,18.58696]
[1744671711139,6.1763,1619.1,1618.8,18.58694]
[1744671711343,0.12201299,1618.9,1618.8,18.58694]
[1744671711559,6.14,1619.2,1618.9,12.35384]
[1744671712942,12.31594,1619.2,1618.9,6.17683]
[1744671713146,6.17627,1619.1,1618.8,12.40975]
[1744671713551,12.31598,1619.2,1618.8,14.268453]
[1744671714247,12.31598,1619.2,1618.9,6.17695]
[1744671714413,6.14,1619.2,1618.9,6.17695]
[1744671714616,12.31594,1619.2,1618.9,6.17691]
[1744671715017,12.31594,1619.2,1618.9,12.35382]
[1744671715213,6.14,1619.2,1618.9,14.3983163]
[1744671715417,6.14,1619.2,1619.1,0.7559]
[1744671717069,15.35133,1619.3,1619.1,0.7559]
[1744671718155,9.17556,1619.3,1619.1,0.7559]
[1744671719433,6.17588,1619.2,1619.0,0.8018]
[1744671719953,0.12172253,1619.1,1619.0,0.8018]
[1744671720335,6.17588,1619.2,1619.0,0.8018]
[1744671720559,0.12172253,1619.1,1619.0,0.8018]
[1744671720721,6.17588,1619.2,1619.0,0.8018]
[1744671721053,0.12172253,1619.1,1619.0,0.8018]
[1744671721355,12.35197,1619.2,1619.0,0.8018]
[1744671721654,6.29799253,1619.1,1618.8,6.2464]
[1744671721829,6.17668,1619.0,1618.8,6.2464]
[1744671722223,0.12169679,1618.9,1618.8,6.2464]
[1744671722449,0.12169679,1618.9,1618.8,12.42381]
[1744671722951,0.12169679,1618.9,1618.8,18.60122]
[1744671723130,6.17627,1619.1,1618.8,18.60122]
[1744671723328,12.3527,1619.1,1618.8,12.42381]
[1744671723530,0.12170966,1619.0,1618.8,12.42369]
[1744671723730,0.12170966,1619.0,1618.9,6.23879849]
[1744671724058,3.0,1619.4,1619.2,6.17562]
[1744671724252,9.17515,1619.4,1619.0,6.96996]
[1744671724458,9.17515,1619.4,1619.0,6.96994]
[1744671724759,15.35045,1619.4,1619.1,6.17616]
[1744671725052,9.17515,1619.4,1619.1,6.17616]
[1744671725241,3.0,1619.4,1619.2,6.17588]
[1744671725442,3.0,1619.4,1619.2,13.10575]
[1744671725625,3.0,1619.4,1619.2,13.10574]
[1744671726021,6.17398,1619.7,1619.4,6.17512]
[1744671726250,6.17398,1619.7,1619.5,0.7542]
[1744671727036,12.34831,1619.7,1619.5,0.7542]
[1744671727828,6.17398,1619.7,1619.5,0.7542]
[1744671728162,3.0,1619.7,1619.5,0.7542]
[1744671728327,6.14,1619.8,1619.6,6.17422]
[1744671728858,9.02899354,1620.2,1619.8,6.1736]
[1744671728859,6.17218,1620.2,1619.8,6.1736]
[1744671729162,6.17313,1620.0,1619.7,6.97145]
[1744671729523,6.17256,1620.1,1619.7,7.03311269]
[1744671729524,12.34519,1620.1,1619.7,7.03311269]
[1744671729729,12.34519,1620.1,1619.8,6.17357]
[1744671730059,1.534519,1620.1,1619.8,6.17359]
[1744671730562,1.534519,1620.1,1619.8,12.34706]
[1744671730763,4.534519,1620.1,1619.8,12.34706]
[1744671730965,4.534519,1620.1,1619.8,6.17347]
[1744671731279,6.17283,1620.0,1619.7,6.97137]
[1744671731480,9.17246,1620.1,1619.8,6.17348]
[1744671731637,9.17246,1620.1,1619.8,12.34697]
[1744671732031,3.0,1620.1,1619.8,12.34697]
[1744671732770,9.17257,1620.1,1619.8,6.17348]
[1744671732937,9.17257,1620.1,1619.8,6.1733]
[1744671733639,9.17257,1620.1,1619.8,12.34672]
[1744671734446,3.0,1620.1,1620.0,0.7586]
[1744671734966,3.11992037,1620.1,1620.0,0.7586]
[1744671735164,3.11992037,1620.1,1619.8,0.7586]
[1744671735165,9.29237037,1620.1,1619.8,0.7586]
[1744671735468,15.46516037,1620.1,1619.8,0.7586]
[1744671735654,16.65984649,1620.1,1619.8,0.7586]
[1744671736035,6.17284,1620.0,1619.8,0.7586]
[1744671736367,6.17328,1619.9,1619.6,12.41365]
[1744671736558,12.46671467,1619.9,1619.6,6.2394]
[1744671737264,0.11989467,1619.9,1619.6,12.47533727]
[1744671737484,0.11989467,1619.9,1619.6,18.58785]
[1744671737880,0.11989467,1619.9,1619.8,6.9554]
[1744671738068,0.11989467,1619.9,1619.8,9.87389773]
[1744671738262,6.17145,1620.4,1620.1,0.8253]
[1744671738464,3.0,1620.4,1620.1,6.99752]
[1744671738785,12.31106,1620.5,1620.2,6.17207]
[1744671738965,8.319226,1620.5,1620.2,6.17207]
[1744671739350,14.490296,1620.5,1620.2,6.17207]
[1744671739553,8.319226,1620.5,1620.2,6.17207]
[1744671739977,14.490346,1620.5,1620.2,6.17207]
[1744671740182,14.490326,1620.5,1620.2,6.17207]
[1744671740386,14.490346,1620.5,1620.2,6.17207]
[1744671740551,8.319226,1620.5,1620.2,6.17207]
[1744671740752,14.490386,1620.5,1620.2,6.17207]
[1744671740952,8.319226,1620.5,1620.1,6.99752]
[1744671741153,8.319226,1620.5,1620.1,13.16986]
[1744671741154,6.17132,1620.4,1620.1,13.16986]
[1744671741354,6.17106,1620.5,1620.2,6.17197]
[1744671741556,12.34223,1620.5,1620.2,6.17197]
[1744671741754,6.17106,1620.5,1620.2,6.17197]
[1744671741954,12.34224,1620.5,1620.2,6.17197]
[1744671742595,6.17106,1620.5,1620.2,6.17196]
[1744671742887,12.34213,1620.5,1620.2,6.17196]
[1744671744068,6.17106,1620.5,1620.2,12.34393]
[1744671744268,6.17106,1620.5,1620.2,6.17195]
[1744671744658,6.17106,1620.5,1620.2,12.3439]
[1744671744857,6.17106,1620.5,1620.2,12.34391]
[1744671745080,6.17106,1620.5,1620.2,12.3439]
[1744671745276,6.17106,1620.5,1620.2,6.17195]
[1744671745480,15.81066658,1620.6,1620.3,6.17159]
[1744671745680,18.29140959,1620.6,1620.2,12.34383]
[1744671746155,18.29140959,1620.6,1620.1,13.17]
[1744671746156,6.17101,1620.5,1620.1,13.17]
[1744671746358,6.17136,1620.4,1620.1,0.8253]
[1744671746692,6.17224,1620.2,1620.0,6.2574]
[1744671747559,12.34444,1620.2,1620.0,6.2574]
[1744671747785,6.1722,1620.2,1620.0,6.2574]
[1744671748171,12.34367,1620.3,1620.0,6.2574]
[1744671748359,13.13553674,1620.3,1620.0,6.2574]
[1744671749166,12.3429,1620.4,1620.1,6.17227]
[1744671749690,12.3429,1620.4,1620.0,18.60292]
[1744671751677,12.34377,1620.3,1620.0,6.2574]
[1744671751895,6.17216,1620.2,1620.0,5.443]
[1744671752094,0.617216,1620.1,1620.0,5.442]
[1744671752402,6.17216,1620.2,1620.0,5.442]
[1744671752403,12.34457,1620.2,1620.0,5.442]
[1744671752767,6.17245,1620.1,1620.0,5.442]
[1744671753299,6.17216,1620.2,1620.0,5.442]
[1744671753700,12.34444,1620.2,1620.0,5.442]
[1744671753901,13.878884,1620.2,1620.0,5.442]
[1744671754101,7.706604,1620.2,1620.0,5.442]
[1744671754397,6.17245,1620.1,1620.0,5.442]
[1744671754578,13.879034,1620.2,1620.0,5.442]
[1744671754780,1.534444,1620.2,1620.0,5.442]
[1744671754997,9.17178,1620.3,1620.0,11.6148]
[1744671755194,15.34372,1620.3,1620.0,11.6148]
[1744671756485,3.0,1620.3,1620.0,6.1963]
[1744671756804,9.1717,1620.3,1620.0,18.54188]
[1744671757703,9.1717,1620.3,1620.1,6.17245]
[1744671758615,3.0,1620.3,1620.1,12.3449]
[1744671758808,18.48215,1620.5,1620.2,6.17193]
[1744671759102,12.34214,1620.5,1620.2,6.17193]
[1744671759268,12.34213,1620.5,1620.2,6.97043]
[1744671759672,6.17105,1620.5,1620.2,6.97043]
[1744671759886,12.34214,1620.5,1620.2,6.97043]
[1744671760412,6.17105,1620.5,1620.2,6.97043]
[1744671760626,6.17105,1620.5,1620.2,7.8528884]
[1744671761000,12.34211,1620.5,1620.2,7.8528884]
[1744671761201,6.17105,1620.5,1620.2,7.8528884]
[1744671761406,12.34211,1620.5,1620.2,7.8528884]
[1744671762485,6.17105,1620.5,1620.2,7.8528884]
[1744671764134,6.17105,1620.5,1620.2,14.0248484]
[1744671764432,12.30966,1620.9,1620.5,6.17093]
[1744671764635,18.4794,1620.9,1620.6,6.1705]
[1744671764843,18.47932,1620.9,1620.6,6.1705]
[1744671765128,3.0,1620.8,1620.6,6.17043]
[1744671765286,12.30966,1620.9,1620.6,6.17043]
[1744671765485,12.30966,1620.9,1620.6,12.34088]
[1744671765719,12.30882,1621.1,1620.8,6.16979]
[1744671765881,12.33768,1621.1,1620.8,6.16979]
[1744671766081,3.0,1621.0,1620.8,6.16979]
[1744671766522,9.16905,1621.0,1620.7,6.94598]
[1744671766734,6.16905,1621.0,1620.7,13.11604]
[1744671767033,12.30805,1621.3,1620.8,5.49969458]
[1744671767226,12.30805,1621.3,1620.9,6.16927]
[1744671767227,6.1684,1621.2,1620.9,6.16927]
[1744671767825,0.11729535,1621.1,1620.9,6.16927]
[1744671768120,6.1684,1621.2,1620.9,12.33855]
[1744671768325,0.11728251,1621.0,1620.9,7.946925]
[1744671768496,12.33683,1621.2,1620.9,7.946925]
[1744671768694,0.11728251,1621.0,1620.9,7.946925]
[1744671768894,6.16794,1621.3,1621.0,6.94489]
[1744671769096,6.16794,1621.3,1621.0,6.9448]
[1744671769300,6.16794,1621.3,1621.0,8.44015035]
[1744671770189,9.21761,1621.4,1621.0,8.44015035]
[1744671770526,0.05,1621.4,1621.3,6.16788]
[1744671770824,0.05,1621.4,1621.3,12.45735077]
[1744671770986,0.05,1621.4,1621.3,12.39568]
[1744671771185,0.05,1621.4,1621.3,15.15453835]
[1744671772493,12.30487,1622.1,1621.8,6.96675]
[1744671772688,6.16487,1622.1,1621.9,5.436]
[1744671772883,12.32936,1622.2,1621.9,5.49765278]
[1744671773111,6.1652,1622.1,1621.9,5.436]
[1744671773319,6.16522,1622.0,1621.9,5.436]
[1744671773825,6.1652,1622.1,1621.9,6.05969]
[1744671773826,12.33023,1622.1,1621.9,6.05969]
[1744671776336,6.16522,1622.0,1621.9,6.05969]
[1744671776508,6.16522,1622.0,1621.9,5.436]
[1744671776832,9.16522,1622.0,1621.9,5.436]
[1744671779835,9.30440308,1622.0,1621.9,5.436]
[1744671780610,6.16644,1621.7,1621.5,48.097]
[1744671780932,6.16644,1621.7,1621.6,5.434]
[1744671782534,6.62018581,1621.8,1621.6,5.434]
[1744671782735,6.14,1621.9,1621.7,0.7671]
[1744671782915,12.30561,1621.9,1621.7,1.38721]
[1744671783237,18.47149,1621.9,1621.7,1.38721]
[1744671783434,12.30561,1621.9,1621.7,1.38721]
[1744671783653,6.16612,1621.8,1621.6,5.434]
[1744671784044,18.47139,1621.9,1621.6,5.434]
[1744671784339,12.33221,1621.8,1621.6,5.434]
[1744671784806,12.33148,1621.9,1621.6,5.434]
[1744671786146,12.33146,1621.9,1621.6,11.66237963]
[1744671786305,6.16574,1621.9,1621.6,17.80721923]
[1744671786501,12.33164,1621.9,1621.6,17.7455596]
[1744671788020,6.16599,1621.8,1621.6,11.5789596]
[1744671788611,6.16574,1621.9,1621.6,11.5789596]
[1744671788612,6.16572,1621.9,1621.6,17.80725945]
[1744671788930,12.3315,1621.9,1621.6,17.7455996]
[1744671789342,6.16572,1621.9,1621.6,17.7455996]
[1744671789705,12.30487,1622.1,1621.9,0.7601]
[1744671790040,6.16476,1622.2,1621.9,6.92569]
[1744671790350,6.16476,1622.2,1622.0,5.433]
[1744671790512,18.46848,1622.3,1622.0,5.433]
[1744671790707,12.37769,1622.4,1622.0,11.59807]
[1744671791048,12.37769,1622.4,1622.0,19.06065321]
[1744671791211,12.37769,1622.4,1622.0,18.999007]
[1744671792154,6.2138,1622.4,1622.2,0.8259]
[1744671792321,0.05,1622.4,1622.2,0.8259]
[1744671792525,3.05,1622.4,1622.2,6.99023]